[Event "Titled Tuesday Blitz June 6 Late 2023"]
[White "Kramnik, Vladimir"]
[Black "Omranalhosani21"]
[WhiteFideId "4101588"]
[WhiteElo "2703"]
[BlackElo "2615"]
[Result "1-0"]
[Round "2"]
[TimeControl "180+2"]
[Date "2023.06.07"]
[WhiteClock "0:00:17"]
[BlackClock "0:00:02"]
[Board "12"]

1. c4 {[%clk 0:03:00]}  Nf6 {[%clk 0:02:56]} 2. Nc3 {[%clk 0:03:00]}  e6 {[%clk 0:02:56]} 3. Nf3 {[%clk 0:02:59]}  d5 {[%clk 0:02:56]} 4. e3 {[%clk 0:02:59]}  Be7 {[%clk 0:02:56]} 5. b3 {[%clk 0:02:56]}  O-O {[%clk 0:02:56]} 6. Bb2 {[%clk 0:02:56]}  c5 {[%clk 0:02:56]} 7. cxd5 {[%clk 0:02:56]}  exd5 {[%clk 0:02:56]} 8. d4 {[%clk 0:02:55]}  Nc6 {[%clk 0:02:53]} 9. Be2 {[%clk 0:02:52]}  Bg4 {[%clk 0:02:48]} 10. dxc5 {[%clk 0:02:47]}  Bxf3 {[%clk 0:02:38]} 11. Bxf3 {[%clk 0:02:44]}  d4 {[%clk 0:02:31]} 12. exd4 {[%clk 0:02:43]}  Nxd4 {[%clk 0:02:31]} 13. Bxb7 {[%clk 0:02:34]}  Rb8 {[%clk 0:02:27]} 14. c6 {[%clk 0:02:31]}  Qb6 {[%clk 0:02:11]} 15. O-O {[%clk 0:02:30]}  Nxc6 {[%clk 0:02:10]} 16. Bxc6 {[%clk 0:02:30]}  Qxc6 {[%clk 0:02:11]} 17. Rc1 {[%clk 0:02:29]}  Rfd8 {[%clk 0:02:09]} 18. Qe2 {[%clk 0:02:28]}  Bf8 {[%clk 0:02:09]} 19. Na4 {[%clk 0:02:21]}  Qe4 {[%clk 0:02:01]} 20. Qxe4 {[%clk 0:02:15]}  Nxe4 {[%clk 0:02:02]} 21. Rfe1 {[%clk 0:02:06]}  Nd6 {[%clk 0:01:41]} 22. g3 {[%clk 0:02:05]}  f6 {[%clk 0:01:29]} 23. Kg2 {[%clk 0:02:05]}  Rbc8 {[%clk 0:01:24]} 24. Rxc8 {[%clk 0:01:58]}  Rxc8 {[%clk 0:01:24]} 25. Rc1 {[%clk 0:01:57]}  Re8 {[%clk 0:01:20]} 26. Kf3 {[%clk 0:01:53]}  Nb5 {[%clk 0:01:17]} 27. h4 {[%clk 0:01:47]}  h5 {[%clk 0:01:14]} 28. Nc3 {[%clk 0:01:34]}  Nd4+ {[%clk 0:01:08]} 29. Kg2 {[%clk 0:01:34]}  Ne2 {[%clk 0:01:08]} 30. Rd1 {[%clk 0:01:31]}  Nxc3 {[%clk 0:01:04]} 31. Bxc3 {[%clk 0:01:30]}  Re2 {[%clk 0:01:05]} 32. Rd8 {[%clk 0:01:22]}  Kf7 {[%clk 0:00:58]} 33. Rd2 {[%clk 0:01:02]}  Rxd2 {[%clk 0:00:23]} 34. Bxd2 {[%clk 0:01:02]}  Ke6 {[%clk 0:00:23]} 35. Kf3 {[%clk 0:01:02]}  f5 {[%clk 0:00:23]} 36. Ke2 {[%clk 0:00:54]}  g6 {[%clk 0:00:21]} 37. Kd3 {[%clk 0:00:54]}  Kd5 {[%clk 0:00:21]} 38. b4 {[%clk 0:00:51]}  Be7 {[%clk 0:00:18]} 39. a4 {[%clk 0:00:49]}  f4 {[%clk 0:00:19]} 40. b5 {[%clk 0:00:41]}  fxg3 {[%clk 0:00:17]} 41. fxg3 {[%clk 0:00:41]}  Bd6 {[%clk 0:00:13]} 42. Bf4 {[%clk 0:00:39]}  Bc5 {[%clk 0:00:07]} 43. a5 {[%clk 0:00:35]}  Bb4 {[%clk 0:00:04]} 44. b6 {[%clk 0:00:24]}  axb6 {[%clk 0:00:02]} 45. axb6 {[%clk 0:00:24]}  Kc6 {[%clk 0:00:02]} 46. Ke4 {[%clk 0:00:19]}  Be7 {[%clk 0:00:02]} 47. Ke5 {[%clk 0:00:17]} 1-0


[Site "https://www.chess.com"]

[Event "Titled Tuesday Blitz June 6 Late 2023"]
[White "Principe, Gerson"]
[Black "Deac, Bogdan-Daniel"]
[WhiteFideId "3804550"]
[BlackFideId "1226380"]
[WhiteElo "2229"]
[BlackElo "2644"]
[Result "0-1"]
[Round "2"]
[TimeControl "180+2"]
[Date "2023.06.07"]
[WhiteClock "0:01:18"]
[BlackClock "0:01:29"]
[Board "13"]

1. Nf3 {[%clk 0:02:58]}  b6 {[%clk 0:02:59]} 2. g3 {[%clk 0:02:58]}  Bb7 {[%clk 0:02:59]} 3. Bg2 {[%clk 0:02:58]}  g6 {[%clk 0:03:00]} 4. O-O {[%clk 0:02:59]}  c5 {[%clk 0:02:58]} 5. d4 {[%clk 0:02:39]}  cxd4 {[%clk 0:02:57]} 6. Qxd4 {[%clk 0:02:38]}  Nf6 {[%clk 0:02:56]} 7. c3 {[%clk 0:02:31]}  Bg7 {[%clk 0:02:56]} 8. Qd1 {[%clk 0:02:32]}  O-O {[%clk 0:02:55]} 9. Bg5 {[%clk 0:02:32]}  h6 {[%clk 0:02:52]} 10. Bf4 {[%clk 0:02:31]}  d6 {[%clk 0:02:52]} 11. Qc1 {[%clk 0:02:26]}  h5 {[%clk 0:02:39]} 12. Bh6 {[%clk 0:02:22]}  Nbd7 {[%clk 0:02:38]} 13. Bxg7 {[%clk 0:02:23]}  Kxg7 {[%clk 0:02:39]} 14. Nbd2 {[%clk 0:02:23]}  Rc8 {[%clk 0:02:38]} 15. Nb3 {[%clk 0:02:16]}  b5 {[%clk 0:02:36]} 16. Qd1 {[%clk 0:02:10]}  Nb6 {[%clk 0:02:30]} 17. Nbd4 {[%clk 0:02:07]}  a6 {[%clk 0:02:28]} 18. Rc1 {[%clk 0:02:07]}  Qd7 {[%clk 0:02:11]} 19. e3 {[%clk 0:01:53]}  Na4 {[%clk 0:02:02]} 20. Qe2 {[%clk 0:01:50]}  Bd5 {[%clk 0:02:02]} 21. a3 {[%clk 0:01:32]}  e5 {[%clk 0:01:47]} 22. Nc2 {[%clk 0:01:30]}  Bc4 {[%clk 0:01:46]} 23. Qd2 {[%clk 0:01:29]}  Bxf1 {[%clk 0:01:46]} 24. Bxf1 {[%clk 0:01:29]}  Nxb2 {[%clk 0:01:46]} 25. Nb4 {[%clk 0:01:29]}  Nc4 {[%clk 0:01:45]} 26. Qa2 {[%clk 0:01:30]}  a5 {[%clk 0:01:38]} 27. Nc2 {[%clk 0:01:27]}  Ne4 {[%clk 0:01:36]} 28. Nce1 {[%clk 0:01:23]}  a4 {[%clk 0:01:32]} 29. h3 {[%clk 0:01:21]}  Nc5 {[%clk 0:01:32]} 30. Nd3 {[%clk 0:01:18]}  Nb3 {[%clk 0:01:29]} 0-1


[Site "https://www.chess.com"]

[Event "Titled Tuesday Blitz June 6 Late 2023"]
[White "Bortnyk, Mykola"]
[Black "Bitoon, Richard"]
[WhiteFideId "14120836"]
[BlackFideId "5201110"]
[WhiteElo "2592"]
[BlackElo "2374"]
[Result "1-0"]
[Round "2"]
[TimeControl "180+2"]
[Date "2023.06.07"]
[WhiteClock "0:01:04"]
[BlackClock "0:00:10"]
[Board "14"]

1. e4 {[%clk 0:03:00]}  Nf6 {[%clk 0:03:00]} 2. e5 {[%clk 0:03:00]}  Nd5 {[%clk 0:03:01]} 3. d4 {[%clk 0:03:01]}  d6 {[%clk 0:03:01]} 4. c4 {[%clk 0:03:01]}  Nb6 {[%clk 0:03:01]} 5. f4 {[%clk 0:03:02]}  dxe5 {[%clk 0:02:59]} 6. fxe5 {[%clk 0:03:03]}  Nc6 {[%clk 0:02:58]} 7. Be3 {[%clk 0:03:03]}  Bf5 {[%clk 0:02:57]} 8. Nc3 {[%clk 0:03:03]}  e6 {[%clk 0:02:53]} 9. Nf3 {[%clk 0:03:03]}  Bb4 {[%clk 0:02:46]} 10. Bd3 {[%clk 0:02:51]}  Bg6 {[%clk 0:02:41]} 11. Rc1 {[%clk 0:02:44]}  Qd7 {[%clk 0:02:25]} 12. O-O {[%clk 0:02:41]}  Bxc3 {[%clk 0:02:24]} 13. bxc3 {[%clk 0:02:40]}  Ne7 {[%clk 0:02:25]} 14. Ng5 {[%clk 0:02:30]}  Nf5 {[%clk 0:02:14]} 15. Bf2 {[%clk 0:02:30]}  Qc6 {[%clk 0:01:59]} 16. Qe2 {[%clk 0:02:14]}  O-O {[%clk 0:01:58]} 17. h4 {[%clk 0:02:02]}  h6 {[%clk 0:01:55]} 18. Nh3 {[%clk 0:01:59]}  a6 {[%clk 0:01:43]} 19. Nf4 {[%clk 0:01:53]}  Bh7 {[%clk 0:01:43]} 20. Qg4 {[%clk 0:01:41]}  Kh8 {[%clk 0:01:43]} 21. d5 {[%clk 0:01:36]}  exd5 {[%clk 0:01:26]} 22. Bxf5 {[%clk 0:01:29]}  Bxf5 {[%clk 0:01:27]} 23. Qxf5 {[%clk 0:01:29]}  Nxc4 {[%clk 0:01:27]} 24. e6 {[%clk 0:01:26]}  Nd6 {[%clk 0:01:19]} 25. Qxd5 {[%clk 0:01:20]}  Qxd5 {[%clk 0:00:22]} 26. Nxd5 {[%clk 0:01:21]}  fxe6 {[%clk 0:00:23]} 27. Nxc7 {[%clk 0:01:21]}  Rac8 {[%clk 0:00:23]} 28. Nxe6 {[%clk 0:01:20]}  Rf6 {[%clk 0:00:24]} 29. Nxg7 {[%clk 0:01:16]}  Rxf2 {[%clk 0:00:19]} 30. Rxf2 {[%clk 0:01:16]}  Kxg7 {[%clk 0:00:20]} 31. Rd1 {[%clk 0:01:14]}  Rc6 {[%clk 0:00:19]} 32. Rfd2 {[%clk 0:01:14]}  Ne4 {[%clk 0:00:19]} 33. Rd7+ {[%clk 0:01:15]}  Kf6 {[%clk 0:00:19]} 34. R1d4 {[%clk 0:01:11]}  Nxc3 {[%clk 0:00:19]} 35. R7d6+ {[%clk 0:01:11]}  Ke5 {[%clk 0:00:19]} 36. Rxc6 {[%clk 0:01:11]}  bxc6 {[%clk 0:00:18]} 37. Rc4 {[%clk 0:01:11]}  Ne2+ {[%clk 0:00:19]} 38. Kf2 {[%clk 0:01:11]}  Nd4 {[%clk 0:00:20]} 39. g4 {[%clk 0:01:08]}  Kd5 {[%clk 0:00:20]} 40. Ra4 {[%clk 0:01:06]}  h5 {[%clk 0:00:12]} 41. gxh5 {[%clk 0:01:06]}  Nf5 {[%clk 0:00:11]} 42. Ra5+ {[%clk 0:01:04]}  c5 {[%clk 0:00:11]} 43. Rxa6 {[%clk 0:01:05]}  Nxh4 {[%clk 0:00:11]} 44. h6 {[%clk 0:01:05]}  Nf5 {[%clk 0:00:09]} 45. h7 {[%clk 0:01:04]}  Nd6 {[%clk 0:00:10]} 46. Rxd6+ {[%clk 0:01:04]}  Kc4 {[%clk 0:00:10]} 47. h8=Q {[%clk 0:01:04]} 1-0


[Site "https://www.chess.com"]

[Event "Titled Tuesday Blitz June 6 Late 2023"]
[White "Piesik, Piotr"]
[Black "Narayanan.S.L"]
[WhiteFideId "1136194"]
[BlackFideId "5058422"]
[WhiteElo "2303"]
[BlackElo "2563"]
[Result "0-1"]
[Round "2"]
[TimeControl "180+2"]
[Date "2023.06.07"]
[WhiteClock "0:01:23"]
[BlackClock "0:02:29"]
[Board "15"]

1. Nf3 {[%clk 0:03:00]}  b5 {[%clk 0:02:57]} 2. e4 {[%clk 0:02:59]}  Bb7 {[%clk 0:02:57]} 3. Bxb5 {[%clk 0:02:59]}  Bxe4 {[%clk 0:02:57]} 4. O-O {[%clk 0:02:59]}  Nf6 {[%clk 0:02:58]} 5. Re1 {[%clk 0:02:59]}  Bb7 {[%clk 0:02:57]} 6. d4 {[%clk 0:02:58]}  e6 {[%clk 0:02:57]} 7. c4 {[%clk 0:02:58]}  Be7 {[%clk 0:02:58]} 8. Nc3 {[%clk 0:02:57]}  O-O {[%clk 0:02:59]} 9. d5 {[%clk 0:02:56]}  c6 {[%clk 0:02:59]} 10. dxc6 {[%clk 0:02:55]}  Nxc6 {[%clk 0:02:59]} 11. Bf4 {[%clk 0:02:52]}  Rc8 {[%clk 0:02:56]} 12. Rc1 {[%clk 0:02:38]}  a6 {[%clk 0:02:56]} 13. Ba4 {[%clk 0:02:38]}  Qa5 {[%clk 0:02:34]} 14. Bc2 {[%clk 0:02:30]}  Rfd8 {[%clk 0:02:33]} 15. Bd6 {[%clk 0:02:27]}  Bxd6 {[%clk 0:02:33]} 16. Qxd6 {[%clk 0:02:27]}  Qb4 {[%clk 0:02:34]} 17. Qxb4 {[%clk 0:02:24]}  Nxb4 {[%clk 0:02:34]} 18. b3 {[%clk 0:02:18]}  Bxf3 {[%clk 0:02:34]} 19. gxf3 {[%clk 0:02:17]}  d5 {[%clk 0:02:35]} 20. a3 {[%clk 0:02:03]}  Nxc2 {[%clk 0:02:35]} 21. Rxc2 {[%clk 0:02:04]}  dxc4 {[%clk 0:02:35]} 22. b4 {[%clk 0:02:04]}  Nd5 {[%clk 0:02:35]} 23. Ne4 {[%clk 0:02:04]}  c3 {[%clk 0:02:35]} 24. Rec1 {[%clk 0:02:04]}  Rc4 {[%clk 0:02:35]} 25. Kf1 {[%clk 0:02:03]}  a5 {[%clk 0:02:31]} 26. bxa5 {[%clk 0:02:02]}  f5 {[%clk 0:02:32]} 27. Ng3 {[%clk 0:01:31]}  Ra8 {[%clk 0:02:28]} 28. Ke2 {[%clk 0:01:27]}  Rxa5 {[%clk 0:02:28]} 29. Kd3 {[%clk 0:01:27]}  Rf4 {[%clk 0:02:28]} 30. Ke2 {[%clk 0:01:24]}  Rxa3 {[%clk 0:02:28]} 31. Rb1 {[%clk 0:01:23]}  Rb4 {[%clk 0:02:29]} 0-1


[Site "https://www.chess.com"]

[Event "Titled Tuesday Blitz June 6 Late 2023"]
[White "Manukyan, Sargis A."]
[Black "Durarbayli, Vasif"]
[WhiteFideId "13303970"]
[BlackFideId "13402935"]
[WhiteElo "2187"]
[BlackElo "2551"]
[Result "1-0"]
[Round "2"]
[TimeControl "180+2"]
[Date "2023.06.07"]
[WhiteClock "0:00:55"]
[BlackClock "0:00:09"]
[Board "23"]

1. d4 {[%clk 0:03:00]}  Nf6 {[%clk 0:02:58]} 2. c4 {[%clk 0:03:01]}  e6 {[%clk 0:02:58]} 3. Nc3 {[%clk 0:03:01]}  Bb4 {[%clk 0:02:59]} 4. a3 {[%clk 0:03:02]}  Bxc3+ {[%clk 0:02:58]} 5. bxc3 {[%clk 0:03:03]}  O-O {[%clk 0:02:58]} 6. e3 {[%clk 0:03:03]}  c5 {[%clk 0:02:54]} 7. Bd3 {[%clk 0:03:03]}  Nc6 {[%clk 0:02:54]} 8. Ne2 {[%clk 0:03:02]}  b6 {[%clk 0:02:53]} 9. O-O {[%clk 0:03:01]}  Ba6 {[%clk 0:02:52]} 10. e4 {[%clk 0:03:02]}  d6 {[%clk 0:02:49]} 11. f4 {[%clk 0:03:03]}  Ne8 {[%clk 0:02:39]} 12. f5 {[%clk 0:03:03]}  e5 {[%clk 0:02:39]} 13. d5 {[%clk 0:03:01]}  Na5 {[%clk 0:02:37]} 14. f6 {[%clk 0:03:01]}  Nxc4 {[%clk 0:01:49]} 15. Qa4 {[%clk 0:02:48]}  Nc7 {[%clk 0:01:43]} 16. Bxc4 {[%clk 0:02:44]}  b5 {[%clk 0:01:43]} 17. Qd1 {[%clk 0:02:44]}  bxc4 {[%clk 0:01:44]} 18. Ng3 {[%clk 0:02:44]}  g6 {[%clk 0:01:44]} 19. Qd2 {[%clk 0:02:42]}  Kh8 {[%clk 0:01:36]} 20. Qh6 {[%clk 0:02:41]}  Rg8 {[%clk 0:01:36]} 21. Rf3 {[%clk 0:02:34]}  Bc8 {[%clk 0:01:27]} 22. Bg5 {[%clk 0:02:12]}  Bg4 {[%clk 0:01:18]} 23. Re3 {[%clk 0:02:02]}  Rb8 {[%clk 0:01:07]} 24. Rf1 {[%clk 0:02:01]}  Qc8 {[%clk 0:00:44]} 25. Nh1 {[%clk 0:01:48]}  Rb2 {[%clk 0:00:33]} 26. Nf2 {[%clk 0:01:48]}  Bd7 {[%clk 0:00:32]} 27. Qh4 {[%clk 0:01:16]}  Nb5 {[%clk 0:00:20]} 28. h3 {[%clk 0:01:15]}  Nxa3 {[%clk 0:00:18]} 29. Ng4 {[%clk 0:01:16]}  Rb1 {[%clk 0:00:14]} 30. Rxb1 {[%clk 0:01:14]}  Nxb1 {[%clk 0:00:15]} 31. Nh6 {[%clk 0:01:15]}  Rf8 {[%clk 0:00:15]} 32. Rg3 {[%clk 0:01:00]}  a5 {[%clk 0:00:15]} 33. Ng4 {[%clk 0:00:55]}  a4 {[%clk 0:00:14]} 34. Bh6 {[%clk 0:00:55]}  Bxg4 {[%clk 0:00:11]} 35. Bg7+ {[%clk 0:00:54]}  Kg8 {[%clk 0:00:11]} 36. hxg4 {[%clk 0:00:55]}  a3 {[%clk 0:00:09]} 37. Qxh7+ {[%clk 0:00:55]} 1-0


[Site "https://www.chess.com"]

[Event "Titled Tuesday Blitz June 6 Late 2023"]
[White "Babazada, Khazar"]
[Black "Safin, Robert"]
[WhiteFideId "13413554"]
[BlackFideId "34189120"]
[WhiteElo "2369"]
[BlackElo "2341"]
[Result "1/2-1/2"]
[Round "2"]
[TimeControl "180+2"]
[Date "2023.06.07"]
[WhiteClock "0:00:36"]
[BlackClock "0:00:07"]
[Board "26"]

1. e4 {[%clk 0:03:00]}  e6 {[%clk 0:03:00]} 2. d4 {[%clk 0:03:00]}  d5 {[%clk 0:03:01]} 3. Nc3 {[%clk 0:03:00]}  dxe4 {[%clk 0:02:59]} 4. Nxe4 {[%clk 0:03:00]}  Nd7 {[%clk 0:03:00]} 5. Nf3 {[%clk 0:03:00]}  Ngf6 {[%clk 0:03:00]} 6. Bd3 {[%clk 0:03:01]}  Nxe4 {[%clk 0:03:01]} 7. Bxe4 {[%clk 0:03:02]}  Nf6 {[%clk 0:03:01]} 8. Bd3 {[%clk 0:03:02]}  c5 {[%clk 0:03:02]} 9. dxc5 {[%clk 0:02:59]}  Bxc5 {[%clk 0:03:02]} 10. O-O {[%clk 0:02:59]}  O-O {[%clk 0:03:01]} 11. Qe2 {[%clk 0:02:59]}  b6 {[%clk 0:03:01]} 12. Rd1 {[%clk 0:03:00]}  Qc7 {[%clk 0:03:00]} 13. Bg5 {[%clk 0:03:00]}  Bb7 {[%clk 0:02:36]} 14. Bxf6 {[%clk 0:02:29]}  gxf6 {[%clk 0:02:37]} 15. Be4 {[%clk 0:02:29]}  Rfd8 {[%clk 0:02:32]} 16. Bxb7 {[%clk 0:02:14]}  Qxb7 {[%clk 0:02:33]} 17. Nd2 {[%clk 0:02:13]}  f5 {[%clk 0:02:28]} 18. Nc4 {[%clk 0:02:01]}  Qe4 {[%clk 0:02:06]} 19. Qxe4 {[%clk 0:02:00]}  fxe4 {[%clk 0:02:07]} 20. Kf1 {[%clk 0:02:00]}  f5 {[%clk 0:01:54]} 21. Ke2 {[%clk 0:01:52]}  Kf7 {[%clk 0:01:52]} 22. f3 {[%clk 0:01:49]}  exf3+ {[%clk 0:01:50]} 23. Kxf3 {[%clk 0:01:48]}  Kf6 {[%clk 0:01:48]} 24. c3 {[%clk 0:01:45]}  e5 {[%clk 0:01:46]} 25. g4 {[%clk 0:01:45]}  e4+ {[%clk 0:01:18]} 26. Kf4 {[%clk 0:01:44]}  b5 {[%clk 0:01:18]} 27. Ne3 {[%clk 0:01:30]}  Bd6+ {[%clk 0:00:54]} 28. Rxd6+ {[%clk 0:01:29]}  Rxd6 {[%clk 0:00:55]} 29. gxf5 {[%clk 0:01:29]}  Rd2 {[%clk 0:00:52]} 30. Rg1 {[%clk 0:01:30]}  Rf2+ {[%clk 0:00:48]} 31. Kxe4 {[%clk 0:01:24]}  Re8+ {[%clk 0:00:48]} 32. Kd3 {[%clk 0:01:24]}  Rf3 {[%clk 0:00:48]} 33. Re1 {[%clk 0:01:24]}  Kg5 {[%clk 0:00:29]} 34. Kd4 {[%clk 0:01:13]}  Kh5 {[%clk 0:00:19]} 35. Re2 {[%clk 0:01:08]}  Rf4+ {[%clk 0:00:13]} 36. Kd3 {[%clk 0:01:07]}  Rf3 {[%clk 0:00:13]} 37. b3 {[%clk 0:00:59]}  Rf4 {[%clk 0:00:12]} 38. c4 {[%clk 0:00:59]}  bxc4+ {[%clk 0:00:12]} 39. bxc4 {[%clk 0:01:00]}  Rd8+ {[%clk 0:00:12]} 40. Nd5 {[%clk 0:00:56]}  Rxf5 {[%clk 0:00:11]} 41. Re7 {[%clk 0:00:56]}  Rfxd5+ {[%clk 0:00:09]} 42. cxd5 {[%clk 0:00:57]}  Rxd5+ {[%clk 0:00:09]} 43. Kc4 {[%clk 0:00:58]}  Ra5 {[%clk 0:00:10]} 44. Kb3 {[%clk 0:00:53]}  Kg6 {[%clk 0:00:10]} 45. a4 {[%clk 0:00:54]}  Rh5 {[%clk 0:00:09]} 46. Re2 {[%clk 0:00:51]}  a5 {[%clk 0:00:08]} 47. Kc4 {[%clk 0:00:50]}  Kf6 {[%clk 0:00:06]} 48. Rb2 {[%clk 0:00:41]}  Ke6 {[%clk 0:00:05]} 49. Rb6+ {[%clk 0:00:40]}  Kd7 {[%clk 0:00:03]} 50. Rb2 {[%clk 0:00:37]}  Kc6 {[%clk 0:00:03]} 51. Rb5 {[%clk 0:00:34]}  Rh4+ {[%clk 0:00:02]} 52. Kb3 {[%clk 0:00:34]}  Rxh2 {[%clk 0:00:03]} 53. Rxa5 {[%clk 0:00:34]}  Rh3+ {[%clk 0:00:03]} 54. Kc4 {[%clk 0:00:34]}  Rh4+ {[%clk 0:00:04]} 55. Kb3 {[%clk 0:00:34]}  Rh3+ {[%clk 0:00:03]} 56. Kc2 {[%clk 0:00:35]}  Rh2+ {[%clk 0:00:04]} 57. Kd3 {[%clk 0:00:32]}  Rh3+ {[%clk 0:00:04]} 58. Ke4 {[%clk 0:00:32]}  Rh4+ {[%clk 0:00:04]} 59. Kf3 {[%clk 0:00:33]}  Kb6 {[%clk 0:00:04]} 60. Rb5+ {[%clk 0:00:32]}  Ka6 {[%clk 0:00:04]} 61. Rb8 {[%clk 0:00:32]}  Rxa4 {[%clk 0:00:04]} 62. Ra8+ {[%clk 0:00:32]}  Kb5 {[%clk 0:00:04]} 63. Rxa4 {[%clk 0:00:33]}  Kxa4 {[%clk 0:00:05]} 64. Kg4 {[%clk 0:00:34]}  Ka3 {[%clk 0:00:06]} 65. Kh5 {[%clk 0:00:34]}  Ka2 {[%clk 0:00:07]} 66. Kh6 {[%clk 0:00:35]}  Ka1 {[%clk 0:00:07]} 67. Kxh7 {[%clk 0:00:36]} 1/2-1/2


[Site "https://www.chess.com"]

[Event "Titled Tuesday Blitz June 6 Late 2023"]
[White "Streltsov, Alexey"]
[Black "Terry, Renato"]
[WhiteFideId "24104434"]
[BlackFideId "3803457"]
[WhiteElo "2565"]
[BlackElo "2575"]
[Result "0-1"]
[Round "2"]
[TimeControl "180+2"]
[Date "2023.06.07"]
[WhiteClock "0:00:22"]
[BlackClock "0:00:12"]
[Board "28"]

1. d4 {[%clk 0:03:00]}  e6 {[%clk 0:02:55]} 2. e4 {[%clk 0:02:59]}  d5 {[%clk 0:02:55]} 3. Nc3 {[%clk 0:03:00]}  Nf6 {[%clk 0:02:55]} 4. e5 {[%clk 0:03:00]}  Nfd7 {[%clk 0:02:56]} 5. f4 {[%clk 0:03:01]}  c5 {[%clk 0:02:56]} 6. Nf3 {[%clk 0:03:01]}  Nc6 {[%clk 0:02:57]} 7. Be3 {[%clk 0:03:01]}  Be7 {[%clk 0:02:58]} 8. Qd2 {[%clk 0:03:00]}  O-O {[%clk 0:02:58]} 9. Be2 {[%clk 0:03:00]}  b6 {[%clk 0:02:58]} 10. O-O {[%clk 0:03:00]}  f5 {[%clk 0:02:58]} 11. exf6 {[%clk 0:03:00]}  Nxf6 {[%clk 0:02:58]} 12. Kh1 {[%clk 0:02:49]}  Bb7 {[%clk 0:02:44]} 13. Bd3 {[%clk 0:02:36]}  Nb4 {[%clk 0:02:33]} 14. Be2 {[%clk 0:02:34]}  Ne4 {[%clk 0:02:15]} 15. Nxe4 {[%clk 0:02:19]}  dxe4 {[%clk 0:02:16]} 16. Ng5 {[%clk 0:02:19]}  Bxg5 {[%clk 0:02:07]} 17. fxg5 {[%clk 0:02:20]}  Rxf1+ {[%clk 0:02:07]} 18. Rxf1 {[%clk 0:02:20]}  cxd4 {[%clk 0:02:06]} 19. Qxb4 {[%clk 0:01:56]}  dxe3 {[%clk 0:02:06]} 20. g6 {[%clk 0:01:56]}  hxg6 {[%clk 0:02:01]} 21. Bg4 {[%clk 0:01:29]}  Qg5 {[%clk 0:01:09]} 22. Bxe6+ {[%clk 0:01:09]}  Kh7 {[%clk 0:01:09]} 23. Qe1 {[%clk 0:00:45]}  Re8 {[%clk 0:00:59]} 24. Bc4 {[%clk 0:00:45]}  Re5 {[%clk 0:00:51]} 25. Qg3 {[%clk 0:00:25]}  Qxg3 {[%clk 0:00:46]} 26. hxg3 {[%clk 0:00:26]}  Rc5 {[%clk 0:00:37]} 27. Bb3 {[%clk 0:00:26]}  Ba6 {[%clk 0:00:34]} 28. Re1 {[%clk 0:00:24]}  e2 {[%clk 0:00:34]} 29. Kg1 {[%clk 0:00:21]}  e3 {[%clk 0:00:28]} 30. c4 {[%clk 0:00:20]}  Bxc4 {[%clk 0:00:18]} 31. Bxc4 {[%clk 0:00:21]}  Rxc4 {[%clk 0:00:18]} 32. Rxe2 {[%clk 0:00:21]}  Re4 {[%clk 0:00:17]} 33. Kf1 {[%clk 0:00:21]}  Kh6 {[%clk 0:00:18]} 34. Rc2 {[%clk 0:00:22]}  Kg5 {[%clk 0:00:10]} 35. Ke2 {[%clk 0:00:20]}  Kg4 {[%clk 0:00:11]} 36. Rc7 {[%clk 0:00:21]}  Kxg3 {[%clk 0:00:10]} 37. Rxg7 {[%clk 0:00:22]}  Re6 {[%clk 0:00:11]} 38. Rxa7 {[%clk 0:00:22]}  Kxg2 {[%clk 0:00:11]} 39. a4 {[%clk 0:00:18]}  g5 {[%clk 0:00:11]} 40. a5 {[%clk 0:00:19]}  bxa5 {[%clk 0:00:11]} 41. Rxa5 {[%clk 0:00:20]}  g4 {[%clk 0:00:11]} 42. b4 {[%clk 0:00:20]}  g3 {[%clk 0:00:11]} 43. b5 {[%clk 0:00:21]}  Kh2 {[%clk 0:00:08]} 44. Ra6 {[%clk 0:00:18]}  Re5 {[%clk 0:00:03]} 45. Rh6+ {[%clk 0:00:17]}  Kg1 {[%clk 0:00:04]} 46. b6 {[%clk 0:00:18]}  g2 {[%clk 0:00:03]} 47. b7 {[%clk 0:00:17]}  Rb5 {[%clk 0:00:04]} 48. Kxe3 {[%clk 0:00:17]}  Rxb7 {[%clk 0:00:04]} 49. Rg6 {[%clk 0:00:13]}  Rf7 {[%clk 0:00:04]} 50. Ke2 {[%clk 0:00:13]}  Rf5 {[%clk 0:00:04]} 51. Rc6 {[%clk 0:00:11]}  Rg5 {[%clk 0:00:01]} 52. Kf3 {[%clk 0:00:12]}  Kh1 {[%clk 0:00:01]} 53. Rh6+ {[%clk 0:00:12]}  Kg1 {[%clk 0:00:02]} 54. Ra6 {[%clk 0:00:13]}  Rf5+ {[%clk 0:00:03]} 55. Kg3 {[%clk 0:00:13]}  Rg5+ {[%clk 0:00:03]} 56. Kf3 {[%clk 0:00:14]}  Rg8 {[%clk 0:00:03]} 57. Ra1+ {[%clk 0:00:14]}  Kh2 {[%clk 0:00:03]} 58. Ra2 {[%clk 0:00:13]}  Kh1 {[%clk 0:00:04]} 59. Rxg2 {[%clk 0:00:11]}  Rxg2 {[%clk 0:00:03]} 60. Kf4 {[%clk 0:00:12]}  Kh2 {[%clk 0:00:04]} 61. Ke3 {[%clk 0:00:12]}  Kh3 {[%clk 0:00:05]} 62. Kf4 {[%clk 0:00:13]}  Rg3 {[%clk 0:00:06]} 63. Ke4 {[%clk 0:00:13]}  Kg2 {[%clk 0:00:06]} 64. Kf4 {[%clk 0:00:14]}  Kf2 {[%clk 0:00:07]} 65. Ke4 {[%clk 0:00:15]}  Rg4+ {[%clk 0:00:08]} 66. Kf5 {[%clk 0:00:15]}  Kf3 {[%clk 0:00:08]} 67. Ke5 {[%clk 0:00:16]}  Re4+ {[%clk 0:00:09]} 68. Kf5 {[%clk 0:00:17]}  Ke3 {[%clk 0:00:09]} 69. Kg5 {[%clk 0:00:18]}  Re5+ {[%clk 0:00:10]} 70. Kf6 {[%clk 0:00:19]}  Kf4 {[%clk 0:00:10]} 71. Kg6 {[%clk 0:00:20]}  Re6+ {[%clk 0:00:10]} 72. Kf7 {[%clk 0:00:20]}  Kf5 {[%clk 0:00:11]} 73. Kg7 {[%clk 0:00:21]}  Re7+ {[%clk 0:00:11]} 74. Kh6 {[%clk 0:00:21]}  Rf7 {[%clk 0:00:12]} 75. Kh5 {[%clk 0:00:22]}  Rh7# {[%clk 0:00:12]} 0-1


[Site "https://www.chess.com"]